Cogmind - Beta 12 @@@ ROGUE MODE // 2023.04.27 @ 19:48:18 Player: Mr Goldstein Result: Destroyed by JJ-8K5(M) with Barrage Gun Performance ------------- Evolutions (3) 1500 Regions Visited (9) 1800 Robots Destroyed (12) 60 Value Destroyed (176) 176 Prototype IDs (25) 500 Alien Tech Used (0) 0 Bonus (838) 838 TOTAL SCORE: 4874 Bonus ------- Pacifist 634 Aligned with FarCom 300 Met Imprinter 300 Friendly Fire -396 Cogmind --------- Core Integrity 0/700 Matter 300/300 Energy 100/100 System Corruption 0% Temperature Cool (0) Movement Core (50) Location -7/Zion Parts ------- > --- POWER (1) -------- (None) > --- PROPULSION (6) --- (None) > --- UTILITY (4) ------ Advanced Terrain Scan Processor Advanced Terrain Scan Processor System Shield > --- WEAPON (2) ------- Impact Mace > --- INVENTORY (5) ---- Improved Deuterium Engine Hacking Suite System Shield Skeleton Box Heavy Missile Launcher Peak State ------------ > --- POWER ------------ Light Fission Core > --- PROPULSION ------- Flight Unit Flight Unit Flight Unit Nuclear Pulse Thruster > --- UTILITY ---------- Experimental Sensor Array Improved Terrain Scanner Advanced Terrain Scan Processor Advanced Terrain Scan Processor > --- WEAPON ----------- Impact Mace > --- INVENTORY -------- Improved Deuterium Engine Hacking Suite System Shield Skeleton Box Heavy Missile Launcher [Rating: 40] Favorites ----------- Power Light Fission Core Engine Improved Deuterium Engine Power Core Light Fission Core Propulsion Flight Unit Treads Light Treads Flight Unit Flight Unit Utility Advanced Terrain Scan Processor Device Improved Terrain Scanner Processor Advanced Terrain Scan Processor Hackware System Shield Weapon Impact Mace Launcher Heavy Missile Launcher Impact Weapon Impact Mace Build | -11 -10 -10 -10 -9 -8 -7 -7 -7 -7 ------- Run | Jun Mat Min Exi Min Mat Fac Low Low Zio Slots Evolved 6 | . . . . . 4 2 . . . Power . | . . . . . . . . . . Propulsion 4 | . . . . . 2 2 . . . Utility 2 | . . . . . 2 . . . . Weapon . | . . . . . . . . . . Parts Attached 17 | 2 . . . 2 1 9 . 1 2 Power 3 | . . . . . . 2 . . 1 Engine 1 | . . . . . . 1 . . . Core 2 | . . . . . . 1 . . 1 Reactor . | . . . . . . . . . . Propulsion 7 | 2 . . . . . 4 . 1 . Treads 2 | 2 . . . . . . . . . Leg . | . . . . . . . . . . Wheel . | . . . . . . . . . . Hover . | . . . . . . . . . . Flight 5 | . . . . . . 4 . 1 . Utility 5 | . . . . 2 1 1 . . 1 Device 2 | . . . . 1 1 . . . . Storage . | . . . . . . . . . . Processor 2 | . . . . 1 . 1 . . . Hackware 1 | . . . . . . . . . 1 Protection . | . . . . . . . . . . Artifact . | . . . . . . . . . . Weapon 2 | . . . . . . 2 . . . Energy Gun . | . . . . . . . . . . Energy Cannon . | . . . . . . . . . . Ballistic Gun . | . . . . . . . . . . Ballistic Cannon . | . . . . . . . . . . Launcher 1 | . . . . . . 1 . . . Special Weapon . | . . . . . . . . . . Impact Weapon 1 | . . . . . . 1 . . . Slashing Weapon . | . . . . . . . . . . Piercing Weapon . | . . . . . . . . . . Special Melee Weapon . | . . . . . . . . . . Unidentified Prototypes 2 | . . . . 1 . 1 . . . Parts Lost 8 | . . 1 . . . . 2 3 2 Power 1 | . . . . . . . 1 . . Propulsion 6 | . . 1 . . . . 1 2 2 Utility 1 | . . . . . . . . 1 . Weapon . | . . . . . . . . . . Highest Loss Streak 3 | . . 1 . . . . 2 3 2 To Critical Strikes . | . . . . . . . . . . Average Slot Usage (%) 51 | . . 26 14 31 34 57 70 58 51 Core 1 | . . . . . . 2 4 . . Treads 3 | . . 26 14 14 9 1 . . . Flight 15 | . . . . . . 18 27 21 14 Device 10 | . . . . 12 16 15 15 13 6 Processor 12 | . . . . 5 9 13 15 15 15 Hackware 1 | . . . . . . . . . 6 Impact Weapon 4 | . . . . . . 4 7 7 7 Naked Turns . | . . . . . . . . . . Heaviest Build 12 | . . . . 1 2 12 12 5 4 Greatest Support 20 | 20 3 3 3 3 3 18 18 14 8 Greatest Overweight (x) . | . . . . . . . . . . Average Overweight (x) . | . . . . . . . . . . Largest Inventory Capacity 5 | 5 5 5 5 5 5 5 5 5 5 Average Capacity 5 | 5 5 5 5 5 5 5 5 5 5 Most Carried 5 | . . . 1 4 5 5 5 5 5 Average Carried 4 | . . . . 1 4 4 5 5 5 Final Capacity 5 | 5 5 5 5 5 5 5 5 5 5 Final Carried 5 | . . . 1 4 5 5 5 5 5 Class Distribution -------------------- 59% | Scout 40% | Mutant Dominant Class ---------------- Mutant | -10/Mines Mutant | -10/Exiles Scout | -9/Mines Scout | -8/Materials Scout | -7/Factory Scout | -7/Lower Caves Scout | -7/Lower Caves Mutant | -7/Zion Resources | -11 -10 -10 -10 -9 -8 -7 -7 -7 -7 ----------- Run | Jun Mat Min Exi Min Mat Fac Low Low Zio Matter Collected 346 | 164 . . . . . 152 . 10 20 Remotely . | . . . . . . . . . . Salvage Created 461 | . . . . . . 273 . 82 106 Parts 9 | . . . . . . 5 . 3 1 Haulers Intercepted . | . . . . . . . . . . Recyclers Shooed . | . . . . . . . . . . Parts Field Recycled . | . . . . . . . . . . Retrieved Matter . | . . . . . . . . . . Parts Self-Destructed 7 | . . . . . . . 5 2 . Prevented . | . . . . . . . . . . Kills | -11 -10 -10 -10 -9 -8 -7 -7 -7 -7 ------- Run | Jun Mat Min Exi Min Mat Fac Low Low Zio Combat Hostiles Destroyed 5 | . . . . . . . . 4 1 Melee 4 | . . . . . . . . 3 1 Classes Destroyed 6 | . . . . . . 5 . 1 . Worker 1 | . . . . . . 1 . . . Tunneler 1 | . . . . . . 1 . . . Recycler 3 | . . . . . . 3 . . . Operator 1 | . . . . . . 1 . . . Watcher 1 | . . . . . . 1 . . . Swarmer 4 | . . . . . . . . 4 . Best Kill Streak 5 | . . . . . . 5 . 4 1 Combat Bots Only 4 | . . . . . . . . 4 1 Max Kills in Single Turn 1 | . . . . . . 1 . 1 1 Gunslinging . | . . . . . . . . . . Exploded . | . . . . . . . . . . Melee 1 | . . . . . . . . 1 1 Uniques/NPCs Destroyed 1 | . . . . . . . . . 1 Imprinter (-7/Zion) Combat | -11 -10 -10 -10 -9 -8 -7 -7 -7 -7 -------- Run | Jun Mat Min Exi Min Mat Fac Low Low Zio Damage Taken 1444 | . . 198 . 85 94 13 167 201 686 Core 813 | . . 38 . 17 48 13 49 102 546 Absorbed by Shields . | . . . . . . . . . . Regen/Repaired (Parts) 95 | . . . . . . . . . 95 Core Remaining (%) 89 | 100 . . . 78 91 . . . . Volleys Fired . | . . . . . . . . . . Largest . | . . . . . . . . . . Hottest . | . . . . . . . . . . Shots Fired . | . . . . . . . . . . Gun . | . . . . . . . . . . Cannon . | . . . . . . . . . . Launcher . | . . . . . . . . . . Special . | . . . . . . . . . . Kinetic . | . . . . . . . . . . Thermal . | . . . . . . . . . . Explosive . | . . . . . . . . . . Electromagnetic . | . . . . . . . . . . Robot Hit Streak . | . . . . . . . . . . Robot Miss Streak . | . . . . . . . . . . Penetration Max . | . . . . . . . . . . Secondary Targets . | . . . . . . . . . . Shots Hit Robots 21 | . . . . . . 7 . 6 8 Core Hits 5 | . . . . . . 2 . 1 2 Critical Kills 2 | . . . . . . 1 . 1 . Critical Parts Destroyed 4 | . . . . . . 2 . 1 1 Critical Strikes 6 | . . . . . . 3 . 2 1 Smash 6 | . . . . . . 3 . 2 1 Melee Attacks 49 | . . . . . . 13 1 10 25 Impact 49 | . . . . . . 13 1 10 25 Slashing . | . . . . . . . . . . Piercing . | . . . . . . . . . . Sneak Attacks 7 | . . . . . . 6 . . 1 Combat Hostiles . | . . . . . . . . . . Follow-up Attacks . | . . . . . . . . . . Damage Inflicted 1711 | . . 22 . . . 722 . 310 657 Guns . | . . . . . . . . . . Cannons . | . . . . . . . . . . Explosions . | . . . . . . . . . . Melee 1689 | . . . . . . 722 . 310 657 Ramming 22 | . . 22 . . . . . . . Kinetic . | . . . . . . . . . . Thermal . | . . . . . . . . . . Explosive . | . . . . . . . . . . Electromagnetic . | . . . . . . . . . . Impact 1689 | . . . . . . 722 . 310 657 Slashing . | . . . . . . . . . . Piercing . | . . . . . . . . . . Highest Corruption . | . . . . . . . . . . Average Corruption . | . . . . . . . . . . Corruption Purged . | . . . . . . . . . . Corruption Blocked . | . . . . . . . . . . Overload Shots . | . . . . . . . . . . Overflow Damage 804 | . . . . . . 452 . 91 261 Projectiles . | . . . . . . . . . . Explosions . | . . . . . . . . . . Melee 804 | . . . . . . 452 . 91 261 Knockbacks 7 | . . 1 . . . 1 . 1 4 Impact 7 | . . 1 . . . 1 . 1 4 Kinetic . | . . . . . . . . . . Secondary . | . . . . . . . . . . Self-Inflicted Damage 10 | . . 10 . . . . . . . Shots . | . . . . . . . . . . Rammed 5 | . . 5 . . . . . . . Targets Rammed 5 | . . 5 . . . . . . . Kicked . | . . . . . . . . . . Crushed . | . . . . . . . . . . Highest Temperature 15 | . . 15 . . . . 6 . . Average Temperature 8 | . . 15 . . . . 5 . . Received Heat Transfer 313 | . . 93 . . 72 9 36 . 103 Siege Activations . | . . . . . . . . . . Robots Corrupted . | . . . . . . . . . . Combat Hostiles . | . . . . . . . . . . Parts Fried 6 | . . . . . . 5 . 1 . Impact Corruptions 28 | . . . . . . 11 . 4 13 Robots Melted . | . . . . . . . . . . Combat Hostiles . | . . . . . . . . . . Parts Melted . | . . . . . . . . . . Heat Transferred . | . . . . . . . . . . Parts Sabotaged . | . . . . . . . . . . Parts Stolen . | . . . . . . . . . . Parts Stripped . | . . . . . . . . . . Power Chain Reactions . | . . . . . . . . . . Missiles Intercepted . | . . . . . . . . . . Alert | -11 -10 -10 -10 -9 -8 -7 -7 -7 -7 ------- Run | Jun Mat Min Exi Min Mat Fac Low Low Zio Peak Influence 173 | . . 15 . 70 27 173 . . . Initial 27 | . . . . . 27 11 . . . Average 50 | . . 13 . 3 27 72 . . . Maximum Alert Level . | . . . . . . . . . . Low Security (%) 100 | 100 100 100 . 100 100 100 . . . Level 1 . | . . . . . . . . . . Level 2 . | . . . . . . . . . . Level 3 . | . . . . . . . . . . Level 4 . | . . . . . . . . . . Level 5 . | . . . . . . . . . . High Security . | . . . . . . . . . . Max Security . | . . . . . . . . . . Squads Dispatched 4 | . . . . 1 . 3 . . . Investigation 2 | . . . . 1 . 1 . . . Extermination . | . . . . . . . . . . Reinforcement 2 | . . . . . . 2 . . . Assault . | . . . . . . . . . . Garrison . | . . . . . . . . . . Intercept . | . . . . . . . . . . Searches Triggered . | . . . . . . . . . . Construction Impeded . | . . . . . . . . . . Haulers Reinforced . | . . . . . . . . . . Active Scanning Responses . | . . . . . . . . . . Cargo Convoy Interrupts . | . . . . . . . . . . Stealth | -11 -10 -10 -10 -9 -8 -7 -7 -7 -7 --------- Run | Jun Mat Min Exi Min Mat Fac Low Low Zio Distress Signals 1 | . . . . . . 1 . . . Communications Jammed . | . . . . . . . . . . Distress Signals . | . . . . . . . . . . Times Spotted 75 | . 1 27 . 4 5 9 10 4 15 Peak Tracking Total 22 | . 1 22 . 3 5 3 9 4 12 Tactical Retreats 7 | . . 1 . . . 2 3 . 1 Traps | -11 -10 -10 -10 -9 -8 -7 -7 -7 -7 ------- Run | Jun Mat Min Exi Min Mat Fac Low Low Zio Traps Triggered . | . . . . . . . . . . Indirectly . | . . . . . . . . . . Trap Hack Attempts . | . . . . . . . . . . Triggered . | . . . . . . . . . . Disarmed . | . . . . . . . . . . Reprogrammed . | . . . . . . . . . . Reused . | . . . . . . . . . . Traps Extracted . | . . . . . . . . . . Installed . | . . . . . . . . . . Triggered . | . . . . . . . . . . Machines | -11 -10 -10 -10 -9 -8 -7 -7 -7 -7 ---------- Run | Jun Mat Min Exi Min Mat Fac Low Low Zio Machines Disabled . | . . . . . . . . . . Max in Single Turn . | . . . . . . . . . . Machines Repaired . | . . . . . . . . . . Machines Sabotaged . | . . . . . . . . . . Overloaded Fab Kills . | . . . . . . . . . . Hacking | -11 -10 -10 -10 -9 -8 -7 -7 -7 -7 --------- Run | Jun Mat Min Exi Min Mat Fac Low Low Zio Machines Accessed 7 | . . . 1 1 . 2 2 . 1 Terminals 1 | . . . . . . 1 . . . Fabricators . | . . . . . . . . . . Repair Stations . | . . . . . . . . . . Recycling Units 1 | . . . . . . 1 . . . Scanalyzers . | . . . . . . . . . . Garrison Access . | . . . . . . . . . . Total Hacks 19 | . . . 1 1 . 4 8 . 5 Successful 16 | . . . 1 1 . 1 8 . 5 Failed 3 | . . . . . . 3 . . . Catastrophic . | . . . . . . . . . . Database Lockouts . | . . . . . . . . . . Manual 1 | . . . 1 . . . . . . Terminals 2 | . . . . . . 2 . . . Fabricators . | . . . . . . . . . . Repair Stations . | . . . . . . . . . . Recycling Units 2 | . . . . . . 2 . . . Scanalyzers . | . . . . . . . . . . Garrison Access . | . . . . . . . . . . Terminal Hacks 15 | . . . 1 1 . . 8 . 5 Record 7 | . . . . . . . 7 . . Part Schematic 5 | . . . . . . . . . 5 Open Door 2 | . . . . 1 . . 1 . . EX-Prototype ID Bank 1 | . . . 1 . . . . . . Fabricator Hacks . | . . . . . . . . . . Repair Station Hacks . | . . . . . . . . . . Recycling Unit Hacks 1 | . . . . . . 1 . . . Retrieve Components 1 | . . . . . . 1 . . . Scanalyzer . | . . . . . . . . . . Garrison Access Hacks . | . . . . . . . . . . Unauthorized Hacks . | . . . . . . . . . . Terminals . | . . . . . . . . . . Fabricators . | . . . . . . . . . . Repair Stations . | . . . . . . . . . . Recycling Units . | . . . . . . . . . . Scanalyzers . | . . . . . . . . . . Garrison Access . | . . . . . . . . . . Data Cores Recovered . | . . . . . . . . . . Used . | . . . . . . . . . . Hacking Detections 2 | . . . . . . 2 . . . Full Trace Events 1 | . . . . . . 1 . . . Feedback Events . | . . . . . . . . . . Feedback Blocked . | . . . . . . . . . . Robot Schematics Acquired 3 | . . . . . . . . . 3 Robots Built . | . . . . . . . . . . Authchips . | . . . . . . . . . . Time . | . . . . . . . . . . Total Robot Build Rating . | . . . . . . . . . . Part Schematics Acquired 20 | . . . . . . . . . 20 Parts Built . | . . . . . . . . . . Authchips . | . . . . . . . . . . Time . | . . . . . . . . . . Total Part Build Rating . | . . . . . . . . . . Parts Repaired . | . . . . . . . . . . Time . | . . . . . . . . . . Parts Recycled . | . . . . . . . . . . Recycled Matter . | . . . . . . . . . . Retrieved Matter . | . . . . . . . . . . Retrieved Components 2 | . . . . . . 2 . . . Parts Scanalyzed . | . . . . . . . . . . Part Schematics Acquired . | . . . . . . . . . . Parts Damaged . | . . . . . . . . . . Bothacking | -11 -10 -10 -10 -9 -8 -7 -7 -7 -7 ------------ Run | Jun Mat Min Exi Min Mat Fac Low Low Zio Used RIF Installer . | . . . . . . . . . . Robots Hacked . | . . . . . . . . . . Non-combat . | . . . . . . . . . . Combat . | . . . . . . . . . . Robot Hacks Applied . | . . . . . . . . . . Relay Couplers Released . | . . . . . . . . . . Fabnet Peak Effective % . | . . . . . . . . . . Robots Rewired . | . . . . . . . . . . Allies Hacked . | . . . . . . . . . . Hacks Repelled . | . . . . . . . . . . Allies | -11 -10 -10 -10 -9 -8 -7 -7 -7 -7 -------- Run | Jun Mat Min Exi Min Mat Fac Low Low Zio Total Allies 6 | . . . . 3 . . 3 . . Largest Group 3 | . . . . 3 . . 3 . . Highest-Rated Group 75 | . . . . 40 . . 75 . . Highest-Rated Ally 25 | . . . . 16 . . 25 . . Total Orders . | . . . . . . . . . . Ally Attacks 18 | . . . . 18 . . . . . Total Damage 213 | . . . . 213 . . . . . Kills 3 | . . . . 3 . . . . . Allies Corrupted . | . . . . . . . . . . Allies Melted 1 | . . 1 . . . . . . . Intel | -11 -10 -10 -10 -9 -8 -7 -7 -7 -7 ------- Run | Jun Mat Min Exi Min Mat Fac Low Low Zio Robot Analysis Total . | . . . . . . . . . . Derelict Logs Recovered 5 | . . . . 2 . . . 1 2 Drone Launches . | . . . . . . . . . . Drone Recoveries . | . . . . . . . . . . Exploration | -11 -10 -10 -10 -9 -8 -7 -7 -7 -7 ------------- Run | Jun Mat Min Exi Min Mat Fac Low Low Zio Turns Passed 1666 | 20 4 99 109 82 50 454 222 245 381 Spaces Moved 2693 | 28 8 188 212 152 95 720 230 298 762 Core 928 | 25 8 188 212 152 95 213 . . 35 Treads 3 | 3 . . . . . . . . . Legs . | . . . . . . . . . . Wheels . | . . . . . . . . . . Hover . | . . . . . . . . . . Flight 1762 | . . . . . . 507 230 298 727 Fastest Speed 31 | 50 50 50 50 50 50 31 31 34 34 Average Speed 39 | 61 50 50 50 50 50 38 32 34 34 Slowest Speed 160 | 160 50 50 50 50 50 50 34 40 50 Overloaded Moves . | . . . . . . . . . . Propulsion Burnouts . | . . . . . . . . . . Robots Hopped . | . . . . . . . . . . Cave-ins Triggered . | . . . . . . . . . . Exploration Rate (%) 36 | 3 3 46 60 42 13 20 46 50 82 Regions Visited 9 Branch Regions 6 Pre-discovered Areas 4 | . . . . 1 . . . . 3 Known Exits Taken 1 | . . . . . 1 . . . . Unknown Exits Taken 8 | 1 1 1 1 1 . 1 1 1 . Scrap Searched 2 | . . . . . . . . . 2 Spaces Dug 8 | . . . . . . 6 . 2 . Terrain Destroyed 8 | . . . . . . 6 . 2 . Melee 8 | . . . . . . 6 . 2 . Projectile . | . . . . . . . . . . AOE . | . . . . . . . . . . Terrain Rammed . | . . . . . . . . . . Walls Destroyed . | . . . . . . . . . . Machines Disabled . | . . . . . . . . . . Actions | -11 -10 -10 -10 -9 -8 -7 -7 -7 -7 --------- Run | Jun Mat Min Exi Min Mat Fac Low Low Zio Total 3192 | 29 7 192 214 156 96 869 373 422 834 Wait 422 | . . . . . . 122 143 114 43 Move 2684 | 27 7 187 211 151 94 719 229 297 762 Hop . | . . . . . . . . . . Pick Up 7 | . . . 1 3 1 2 . . . Fast Attach 14 | 2 . . . 2 1 6 . 1 2 Attach 3 | . . . . . . 3 . . . Detach 2 | . . . . . . 2 . . . Swap . | . . . . . . . . . . Drop 4 | . . . . . . 2 . . 2 Fire . | . . . . . . . . . . Melee 49 | . . . . . . 13 1 10 25 Ram 5 | . . 5 . . . . . . . Kick . | . . . . . . . . . . Crush . | . . . . . . . . . . Escape Stasis . | . . . . . . . . . . Rewire 2 | . . . 2 . . . . . . Trap . | . . . . . . . . . . Miscellaneous . | . . . . . . . . . . Route ------- -11/Junkyard -10/Materials -10/Mines -10/Exiles -9/Mines -8/Materials -7/Factory -7/Lower Caves -7/Lower Caves (discovered 2 exits: [*Fac] / *Zio) -7/Zion History --------- Turn | Location | Event 12 | -11/Junkyard | Discovered new exit (range 14) 21 | -11/Junkyard | Entered Materials 21 | -10/Materials | Discovered new exit (range 8) 25 | -10/Materials | Entered Mines 31 | -10/Mines | Assembled infested the area 36 | -10/Mines | Assisted by a Guerilla fighting off Assembled 122 | -10/Mines | Deemed a non-threat by the Exiles lab entrance 122 | -10/Mines | Discovered new exit (range 5) 124 | -10/Mines | Entered Exiles 138 | -10/Exiles | Met 8R-AWN 145 | -10/Exiles | Met EX-HEX 163 | -10/Exiles | Met EX-BIN 169 | -10/Exiles | Aligned with FarCom system 169 | -10/Exiles | Given EX-Vault access code 181 | -10/Exiles | Opened EX-Vault 185 | -10/Exiles | Found Skeleton Box 196 | -10/Exiles | Warned to stay clear of 0b10 Research branches 212 | -10/Exiles | Met EX-DEC 229 | -10/Exiles | Discovered new exit (range 10) 233 | -10/Exiles | Left Exiles lab with Skeleton Box 233 | -10/Exiles | Entered Mines 235 | -9/Mines | Assisted by bots powering up and referring to "LRC-V3" 242 | -9/Mines | Found a damaged Exp. Sensor Array with a note attached 243 | -9/Mines | Found Prototype Device 243 | -9/Mines | Identified Exp. Sensor Array 275 | -9/Mines | Learned 4 Materials zone layouts 281 | -9/Mines | Met a Derelict shopkeep closing up shop 281 | -9/Mines | Learned location of Zion (-7) 304 | -9/Mines | Discovered new exit (range 15) 315 | -9/Mines | Entered Materials 315 | -8/Materials | Evolved 4 slots: Propulsion x2, Utility x2 316 | -8/Materials | Identified exit to Factory 365 | -8/Materials | Entered Factory 365 | -7/Factory | Evolved 2 slots: Propulsion x2 549 | -7/Factory | Build established: Scout 591 | -7/Factory | Discovered new exit (range 6) 819 | -7/Factory | Entered Lower Caves 990 | -7/Lower Caves | A Commander dispatched an escort 992 | -7/Lower Caves | Learned Extension trap positions 992 | -7/Lower Caves | Learned Armory trap positions 992 | -7/Lower Caves | Learned Research emergency access door positions 992 | -7/Lower Caves | Learned Research stockpile data 992 | -7/Lower Caves | Learned Armory stockpile data 992 | -7/Lower Caves | Learned Extension terminal intel 1002 | -7/Lower Caves | Discovered new exit (range 13) 1041 | -7/Lower Caves | Entered another Lower Caves area 1041 | -7/Lower Caves | Accompanied by 3 allies 1042 | -7/Lower Caves | Commander's escort returned to base 1042 | -7/Lower Caves | Commander's escort returned to base 1042 | -7/Lower Caves | Commander's escort returned to base 1044 | -7/Lower Caves | Learned 4 Factory zone layouts 1049 | -7/Lower Caves | Discovered new exit (range 9) 1281 | -7/Lower Caves | Lost 3 parts (2n1u) 1284 | -7/Lower Caves | Discovered new exit (range 5) 1286 | -7/Lower Caves | Entered Zion 1344 | -7/Zion | Learned location of Data Miner (-6) 1404 | -7/Zion | Learned 12 Factory zone layouts 1418 | -7/Zion | Visited the Megawrench Repair Shop 1418 | -7/Zion | Megawrench repaired 6 parts 1435 | -7/Zion | Given A8's code to call for help 1464 | -7/Zion | Learned location of Warlord (-5) 1484 | -7/Zion | Learned 4 Factory zone layouts 1486 | -7/Zion | Learned Factory emergency access door positions 1532 | -7/Zion | Build established: Mutant 1589 | -7/Zion | Rebuked by Imprinter 1625 | -7/Zion | Attacked by Zionites 1645 | -7/Zion | Core integrity fell below 50% 1650 | -7/Zion | Destroyed Imprinter 1652 | -7/Zion | Extracted access codes from Imprinter's data core 1653 | -7/Zion | Core integrity fell below 20% 1667 | -7/Zion | Destroyed by JJ-8K5(M) with Barrage Gun Last Messages --------------- 01643_ Destroyed Prototype Engine. 01643_ Destroyed Mak. Sensor Array. 01643_ Imprinter system corrupted by crushing effect. 01643_ Imprinter knocked back. 01646_ Destroyed Mak. Hacking Suite. 01646_ Destroyed Mak. System Shield. 01646_ Imprinter system corrupted by crushing effect. 01646_ Imprinter knocked back. 01647_ GK-T60(c) calibrates the Conduit Teleporter. 01650_ Destroyed Mak. System Shield. 01650_ Imprinter system corrupted by crushing effect. 01650_ Imprinter: "Derelicts unite!" 01650_ Imprinter destroyed. 01651_ LI-YY5(M) misfires. 01652_ Acquired data core, extracted access codes \\CWFG, \\4G9N, \\ARTP, \\AHJG. IE-ED4(z) bursts out of the Twisted Machinery. 01658_ 20-8YF(z) pulls a Mak. Sword out of the Twisted Machinery. 01660_ 4Q-UVQ(m) fits Backup Plating III on 8X-CZH(z). K5-LYY(z) bursts out of the Twisted Machinery. Map ----- +----------------------------------------------------+ | ?????????????????????????????????????????????????? | | ?????????????????????????????????????????????????? | | ?????????????????????????????????????????????????? | | ?????????????????????????##??????????????????????? | | ???????????????????????#????##?????#####?????????? | | ????????????????????????#??##"######"#"#####?????? | | ?????????????????#??#???##?#""""#""""""""""####??? | | ?????????????????#??#??????#" " "#""""""""""""#??? | | ????????????????#?#"##??#### # """ """"#??? | | ?????????????""""#""?""???### ""#??? | | ???????????????#??##?""##??##" ""#??? | | ????????????? ??? " X"""###""" ""#### | | ???????????#? ????X# """""""""" """"" """"#" | | ????????????##?#?### """ "" ""#""" """"" | | ??????????? "??" ?" "#""""" " | | ????????????" ????" """"""""" | | ?????????????####?# """" """#" """ | | ??????????? ?##"""""""""""! """"" """ | | ?????????? ?????"#??#?#""% "" ""#"" | | ??????????###?######?##"" " " """"" | | ??????????#"?"#?######""" "" ""#"" "" | | ???????????#?##?######### """ "" ""#"" """" " | | ???????????????#?#??###"" """ "" """"" """" " | | ??????????#??###?#####"""z""" "" """" ""#" " | | ????????????##?######""" """ """ """" " | | ????????????#######?#""" @ "" """ | | ??????????#?##########""" """ " | | ???????????#####?#?###""" """ " | | ??????????#?###?########" M """ " | | ??????????####?########"" """ """"" | | ??????????#??###""""#" $" " """"" | | ????????????##### " "" " ""?? | | ??????????#???##"" "" "" ""? | | ??????????#?#?##" " m "" | | ?????????##?#####" " z" " | | ????????????####""""#" "" ? | | ??????????#?##?######## """ "" ? | | ???????????#####?###### """" """ ""? | | ???????????############"# """" ""#" """? | | ????????????##??##?#####" """ """"" ""## | | ??????????#####?######### z """ ""#"" """? | | ???????????##############" "" ""#"" """? | | ?????????????#?########### """"""" "### | | ???????????#######"######" """""" "#?# | | ???????????#"""#"""""""""" """ "### | | ????????#####"""" """"""#" """" ""## | | ?????""""""?#""" "" """" """""" ""## | | ???"""""""" #""" """""""" ""## | | ??? #""" "" """" """" | | ?"""""" ##"" % """""" """ "# | +----------------------------------------------------+ Best States ------------- Heat Dissipation 34 Energy Generation 18 Energy Capacity 290 Matter Stores 300 Matter Capacity 300 Sight Range 16 Robot Scan Range 20 Terrain Scan Range 16 Terrain Scan Density 410 Evasion (%) 63 Recoil Reduction 1 Defensive Hacking 10 Item Schematics ----------------- Nuclear Pulse Thruster | -7/Zion | Archive Proton Missile Launcher | -7/Zion | Archive Gatling Laser | -7/Zion | Archive Hvy. Flak Cannon | -7/Zion | Archive Mak. System Shield | -7/Zion | Archive 0b10 Decoder Chip [Skirmisher] | -7/Zion | Archive Mak. Spear | -7/Zion | Archive Imp. Coolant Injector | -7/Zion | Archive Hvy. Phase Cannon | -7/Zion | Archive Mak. Hacking Suite | -7/Zion | Archive Imp. Trap Scanner | -7/Zion | Archive Phase Shifter | -7/Zion | Archive Energy Filter | -7/Zion | Archive Mak. Flight Unit | -7/Zion | Archive Imp. Particle Charger | -7/Zion | Archive Riot Gun | -7/Zion | Free Hvy. Riot Gun | -7/Zion | Free Barrage Gun | -7/Zion | Free Battle Cannon | -7/Zion | Free Ripper | -7/Zion | Free Robot Schematics ------------------ R-06 Scavenger | -7/Zion | Archive O-24 Administrator | -7/Zion | Archive S-27 Virus | -7/Zion | Archive Fabricated ------------ Nothing Alien Tech Used ----------------- None Achievements -------------- None Challenges ------------ None Game ------ Seed PropulsionWeightImmobilizer Manual? 0 Play Time 00:23:29 Cumulative 153.2 hours Start 2023.04.27 @ 19:14:59 End 2023.04.27 @ 19:48:18 Sessions 1 Manual Loads 0 Difficulty Rogue Special Mode None Game No. 449 Rogue 449 Adventurer 0 Explorer 0 Win Type - Total 7 Types 6/0/0/1/0/0/0/0/0 Lore% 66 Gallery% 71 Achievement% 61 Wizard Run 0 Options --------- ASCII 0 Keyboard 0 Movement Numpad Keybinds 0 Fullscreen 1 Font 16/SmallcapsGlow Map View 75x55 Tactical HUD 1 Map Filters NONE Filters NONE Steam 1 RUN: 577f0e61-19ec-425d-971f-8b830463d7dc